[Event "CZE-ch Youth G16 2022"]
[Site "Luhacovice"]
[Date "2022.03.14"]
[Round "4.1"]
[White "Hosova, Sandra"]
[Black "Voriskova, Anna"]
[Result "1-0"]
[ECO "A48"]
[WhiteElo "1545"]
[BlackElo "1812"]
[Annotator "NA"]
[PlyCount "67"]
[EventDate "2022.03.12"]
[EventType "swiss"]
[EventCountry "CZE"]
[SourceTitle "playchess.com"]
[Source "ChessBase"]
[SourceQuality "1"]
[TimeControl "40/5400+30:1800+30"]

1. d4 {[%emt 0:00:12]} Nf6 {[%emt 0:00:21]} 2. Nf3 {[%emt 0:00:20]} g6 {[%emt 0:00:24]} 3. Bf4 {[%emt 0:00:34]} c5 {[%emt 0:00:33]} 4. e3 {[%emt 0:01:09]} b6 {[%emt 0:00:43]} 5. Be2 {[%emt 0:01:50]} Bg7 {[%emt 0:00:14]} 6. Nc3 {[%emt 0:03:59]} O-O {[%emt 0:04:15]} 7. Qd3 {[%emt 0:06:58]} Bb7 {[%emt 0:01:48]} 8. O-O-O {[%emt 0:03:06]} cxd4 {[%emt 0:05:41]} 9. exd4 {[%emt 0:02:23]} d5 {[%emt 0:06:09]} 10. Ne5 {[%emt 0:05:54]} Ba6 {[%emt 0:19:27]} 11. Qe3 {[%emt 0:02:54]} Bxe2 {[%emt 0:01:14]} 12. Qxe2 {[%emt 0:01:28]} ({Of course not} 12. Nxe2 Qc8 $11) 12... a6 {[%emt 0:04:24]} 13. g4 {[%emt 0:05:18]} b5 {[%emt 0:03:27]} 14. Kb1 {[%emt 0:07:59]} Qa5 {[%emt 0:01:46]} 15. Qe3 {[%emt 0:08:55]} b4 {[%emt 0:00:46]} 16. Ne2 {[%emt 0:00:28]} Qb5 {[%emt 0:04:06]} 17. h4 {[%emt 0:12:45]} Nbd7 {[%emt 0:06:33]} 18. f3 {[%emt 0:08:30]} Rfc8 {[%emt 0:17:23]} (18... Nb6 $16) 19. h5 {[%emt 0:03:56]} Nf8 {[%emt 0:01:29]} 20. Rd2 {[%emt 0:04:08]} a5 {[%emt 0:03:31]} 21. hxg6 {[%emt 0:01:23]} hxg6 $2 {[%emt 0:01:17]} (21... fxg6 {was called for.} 22. Nc1 N6d7) 22. Bh6 {[%emt 0:01:59]} N6h7 {[%emt 0:00:26]} 23. Bxg7 {[%emt 0:01:15]} Kxg7 {[%emt 0:00:02]} 24. Qh6+ {[%emt 0:05:42]} Kg8 {[%emt 0:00:01]} 25. Nf4 {[%emt 0:02:13]} Ra6 {[%emt 0:01:43]} 26. Qh4 {[%emt 0:02:14]} g5 {[%emt 0:01:09]} 27. Qh5 {[%emt 0:00:30]} Rf6 $2 {[%emt 0:00:24]} (27... Qe8) 28. Nh3 {[%emt 0:00:52]} Ne6 $18 {[%emt 0:01:09]} 29. Rdh2 {[%emt 0:03:33]} Rxf3 {[%emt 0:09:20]} 30. Nf2 {[%emt 0:01:45]} Nef8 {[%emt 0:00:43]} 31. Nxf3 {[%emt 0:00:10]} Qc6 {[%emt 0:00:34]} 32. Nd3 {[%emt 0:00:35]} Qf6 {[%emt 0:00:20]} 33. Nfe5 {[%emt 0:00:37]} a4 {[%emt 0:00:50]} 34. Nd7 {[%emt 0:00:40]} 1-0

[Event "CZE-ch Youth G16 2022"]
[Site "Luhacovice"]
[Date "2022.03.14"]
[Round "4.2"]
[White "Nagyova, Daniela"]
[Black "Havelkova, Beata"]
[Result "1-0"]
[ECO "B42"]
[WhiteElo "1623"]
[BlackElo "1666"]
[Annotator "NA"]
[PlyCount "49"]
[EventDate "2022.03.12"]
[EventType "swiss"]
[EventCountry "CZE"]
[SourceTitle "playchess.com"]
[Source "ChessBase"]
[SourceQuality "1"]
[TimeControl "40/5400+30:1800+30"]

1. e4 {[%emt 0:00:08]} c5 {[%emt 0:00:24]} 2. Nf3 {[%emt 0:00:30]} e6 {[%emt 0:00:30]} 3. d4 {[%emt 0:00:30]} cxd4 {[%emt 0:00:30]} 4. Nxd4 {[%emt 0:00:30]} a6 {[%emt 0:00:30]} 5. Bd3 {[%emt 0:00:30]} Qc7 {[%emt 0:00:30]} 6. Nc3 {[%emt 0:00:30]} b5 {[%emt 0:00:30]} 7. O-O {[%emt 0:00:30]} Bb7 {[%emt 0:04:33]} 8. Qe2 {[%emt 0:04:22]} d6 {[%emt 0:03:55]} 9. a4 {[%emt 0:03:37]} b4 {[%emt 0:07:48]} 10. Na2 {[%emt 0:02:39]} Nf6 {[%emt 0:05:15]} 11. c3 {[%emt 0:10:09]} bxc3 {[%emt 0:03:16]} 12. Nxc3 {[%emt 0:01:30]} Nbd7 {[%emt 0:02:02]} 13. Bd2 {[%emt 0:07:44]} Nc5 {[%emt 0:18:19]} 14. Rac1 {[%emt 0:08:52]} Qb6 {[%emt 0:04:41]} 15. Be3 {[%emt 0:07:52]} Be7 {[%emt 0:00:47]} 16. Rb1 {[%emt 0:08:58]} Rc8 {[%emt 0:07:58]} 17. Nxe6 {[%emt 0:08:11]} fxe6 {[%emt 0:01:11]} 18. b4 {[%emt 0:00:37]} Qc6 {[%emt 0:02:42]} 19. bxc5 {[%emt 0:01:19]} dxc5 {[%emt 0:01:47]} 20. Rxb7 {[%emt 0:02:30]} c4 {[%emt 0:02:40]} 21. Rb6 {[%emt 0:05:42]} cxd3 {[%emt 0:04:32]} 22. Rxc6 {[%emt 0:00:14]} dxe2 {[%emt 0:00:31]} 23. Rxc8+ {[%emt 0:00:16]} Kf7 {[%emt 0:00:55]} 24. Rxh8 {[%emt 0:00:14]} exf1=Q+ {[%emt 0:00:18]} 25. Kxf1 1-0

[Event "CZE-ch Youth G16 2022"]
[Site "Luhacovice"]
[Date "2022.03.14"]
[Round "4.3"]
[White "Nespora, Tatana"]
[Black "Markova, Karolina"]
[Result "0-1"]
[ECO "B35"]
[WhiteElo "1452"]
[BlackElo "1589"]
[Annotator "NA"]
[PlyCount "78"]
[EventDate "2022.03.12"]
[EventType "swiss"]
[EventCountry "CZE"]
[SourceTitle "playchess.com"]
[Source "ChessBase"]
[SourceQuality "1"]
[TimeControl "40/5400+30:1800+30"]

1. e4 {[%emt 0:00:48]} c5 {[%emt 0:00:09]} 2. Nf3 {[%emt 0:00:44]} Nc6 {[%emt 0:00:07]} 3. d4 {[%emt 0:01:35]} cxd4 {[%emt 0:00:07]} 4. Nxd4 {[%emt 0:00:55]} g6 {[%emt 0:00:13]} 5. Nc3 {[%emt 0:01:03]} Bg7 {[%emt 0:00:06]} 6. Be3 {[%emt 0:00:30]} Nf6 {[%emt 0:00:44]} 7. Bc4 {[%emt 0:01:11]} O-O {[%emt 0:00:21]} 8. Bb3 {[%emt 0:01:27]} d6 {[%emt 0:00:26]} 9. f3 {[%emt 0:02:10]} Bd7 {[%emt 0:01:07]} 10. Qd2 {[%emt 0:01:43]} a6 {[%emt 0:00:43]} 11. O-O-O {[%emt 0:01:45]} b5 {[%emt 0:01:43]} 12. g4 {[%emt 0:01:40]} Na5 {[%emt 0:02:48]} 13. h4 {[%emt 0:01:51]} Nc4 {[%emt 0:05:26]} 14. Bxc4 {[%emt 0:03:29]} bxc4 {[%emt 0:00:24]} 15. h5 {[%emt 0:00:50]} Rb8 {[%emt 0:01:00]} 16. hxg6 {[%emt 0:01:20]} fxg6 {[%emt 0:04:45]} 17. Bh6 {[%emt 0:14:06]} Qb6 {[%emt 0:02:42]} 18. Qg5 {[%emt 0:02:32]} Qxb2+ {[%emt 0:03:05]} 19. Kd2 {[%emt 0:00:06]} Nxe4+ {[%emt 0:16:33]} 20. fxe4 {[%emt 0:02:54]} Rf2+ {[%emt 0:09:59]} 21. Ke1 {[%emt 0:19:34]} Qxc3+ {[%emt 0:01:35]} 22. Kxf2 {[%emt 0:00:07]} Bxd4+ {[%emt 0:00:25]} 23. Rxd4 {[%emt 0:01:01]} Qxd4+ {[%emt 0:00:06]} 24. Kg3 {[%emt 0:03:14]} Qxe4 {[%emt 0:07:22]} 25. Rf1 {[%emt 0:02:18]} Bc6 {[%emt 0:01:13]} 26. Qf4 {[%emt 0:01:52]} Qxf4+ {[%emt 0:01:32]} 27. Rxf4 {[%emt 0:01:05]} Bd5 {[%emt 0:00:59]} 28. Bg5 {[%emt 0:01:50]} Re8 {[%emt 0:02:03]} 29. Kf2 {[%emt 0:02:45]} e5 {[%emt 0:01:14]} 30. Rf6 {[%emt 0:01:17]} Rf8 {[%emt 0:00:14]} 31. Ke3 {[%emt 0:00:25]} Rxf6 {[%emt 0:00:28]} 32. Bxf6 {[%emt 0:00:33]} Kf7 {[%emt 0:00:03]} 33. Bd8 {[%emt 0:01:04]} Ke6 {[%emt 0:00:14]} 34. g5 {[%emt 0:00:32]} c3 {[%emt 0:00:56]} 35. Kd3 {[%emt 0:01:17]} Bxa2 {[%emt 0:00:30]} 36. Kxc3 {[%emt 0:00:06]} d5 {[%emt 0:00:15]} 37. Kd3 {[%emt 0:00:30]} d4 {[%emt 0:01:13]} 38. c3 {[%emt 0:01:06]} Bb1+ {[%emt 0:00:25]} 39. Kc4 {[%emt 0:00:16]} d3 {[%emt 0:00:14]} 0-1

[Event "CZE-ch Youth G16 2022"]
[Site "Luhacovice"]
[Date "2022.03.14"]
[Round "4.4"]
[White "Sulcova, Tereza Radmila"]
[Black "Smajzrova, Dominika"]
[Result "1/2-1/2"]
[ECO "A00"]
[WhiteElo "1555"]
[BlackElo "1203"]
[Annotator "NA"]
[PlyCount "36"]
[EventDate "2022.03.12"]
[EventType "swiss"]
[EventCountry "CZE"]
[SourceTitle "playchess.com"]
[Source "ChessBase"]
[SourceQuality "1"]
[TimeControl "40/5400+30:1800+30"]

1. a3 e5 2. b4 d5 3. Bb2 Bd6 4. Nf3 Nd7 5. e3 Ngf6 6. Be2 O-O 7. O-O Re8 8. d3 Nf8 9. c4 c6 10. Nbd2 Ng6 11. Qb3 Bc7 12. Rac1 Be6 13. Rfd1 Rb8 14. Qc2 Rc8 15. a4 Qd7 16. Nb3 b6 17. Ra1 Bf5 18. Nfd2 Bh3 1/2-1/2

[Event "CZE-ch Youth G16 2022"]
[Site "Luhacovice"]
[Date "2022.03.14"]
[Round "4.5"]
[White "Fizerova, Lucie"]
[Black "Macova, Marketa"]
[Result "1-0"]
[ECO "C42"]
[WhiteElo "1804"]
[BlackElo "1224"]
[Annotator "NA"]
[PlyCount "97"]
[EventDate "2022.03.12"]
[EventType "swiss"]
[EventCountry "CZE"]
[SourceTitle "playchess.com"]
[Source "ChessBase"]
[SourceQuality "1"]
[TimeControl "40/5400+30:1800+30"]

1. e4 e5 2. Nf3 Nf6 3. Nxe5 d6 4. Nf3 Nxe4 5. Nc3 Nxc3 6. dxc3 Nc6 7. Be3 Bg4 8. Be2 Bc8 {[%emt 0:04:36]} 9. Bf1 {[%emt 0:04:35]} Bg4 {[%emt 0:02:18]} 10. Be2 {[%emt 0:00:50]} Be7 {[%emt 0:02:02]} 11. Qd2 {[%emt 0:00:51]} Qd7 {[%emt 0:02:26]} 12. O-O-O {[%emt 0:02:34]} O-O-O {[%emt 0:01:21]} 13. h3 {[%emt 0:01:07]} Be6 {[%emt 0:01:46]} 14. Bb5 {[%emt 0:04:05]} a6 {[%emt 0:01:52]} 15. Ba4 {[%emt 0:02:01]} Rhe8 {[%emt 0:05:01]} 16. Kb1 {[%emt 0:08:12]} Kb8 {[%emt 0:07:12]} 17. Nd4 {[%emt 0:05:12]} Bd5 {[%emt 0:03:07] [#]} 18. Nxc6+ $16 {[%emt 0:05:38]} ({White has to play} 18. c4 $1 $18 {[%cal Rc4d5]} Bxg2 19. Rh2) 18... Bxc6 {[%emt 0:00:29]} 19. Qd4 {[%emt 0:01:05]} b6 {[%emt 0:02:56]} 20. Bxc6 {[%emt 0:00:39]} Qxc6 {[%emt 0:00:28]} 21. Qxg7 {[%emt 0:00:48]} Rf8 {[%emt 0:03:26]} 22. g4 {[%emt 0:06:17]} Qe4 {[%emt 0:01:54]} 23. Rhe1 {[%emt 0:01:42]} Qg6 {[%emt 0:08:17]} 24. Qxg6 {[%emt 0:02:41]} fxg6 {[%emt 0:00:49]} 25. Bxb6 {[%emt 0:00:56]} Bh4 {[%emt 0:03:08]} 26. Bd4 {[%emt 0:06:16]} Bxf2 {[%emt 0:01:30]} 27. Re7 {[%emt 0:00:39]} h5 {[%emt 0:05:53]} 28. Rg7 {[%emt 0:02:56]} hxg4 {[%emt 0:02:08]} 29. hxg4 {[%emt 0:00:17]} Bxd4 {[%emt 0:03:48]} 30. cxd4 {[%emt 0:00:10]} Rg8 {[%emt 0:01:51]} 31. Rxg8 {[%emt 0:02:18]} Rxg8 {[%emt 0:00:11]} 32. c3 {[%emt 0:00:47]} Kb7 {[%emt 0:04:02]} 33. Rf1 {[%emt 0:01:37]} Kb6 {[%emt 0:01:10]} 34. Rf7 {[%emt 0:02:33]} a5 {[%emt 0:06:13]} 35. Kc2 {[%emt 0:01:27]} c6 {[%emt 0:06:00]} 36. Rd7 {[%emt 0:01:46]} d5 {[%emt 0:00:24]} 37. Kd3 {[%emt 0:01:22]} Rb8 {[%emt 0:05:56]} 38. Rg7 {[%emt 0:01:13]} c5 {[%emt 0:06:28]} 39. Rxg6+ {[%emt 0:01:14]} Kb5 {[%emt 0:00:15]} 40. Rd6 {[%emt 0:03:51]} c4+ {[%emt 0:01:59]} 41. Kc2 {[%emt 0:30:57]} Rg8 {[%emt 0:31:16]} 42. Rxd5+ {[%emt 0:00:18]} Kb6 {[%emt 0:00:41]} 43. Rc5 {[%emt 0:05:00]} Rxg4 {[%emt 0:00:44]} 44. Rxc4 {[%emt 0:00:06]} Rg2+ {[%emt 0:00:39]} 45. Kb3 {[%emt 0:00:09]} Rd2 {[%emt 0:01:15]} 46. a4 {[%emt 0:01:13]} Ka6 {[%emt 0:01:35]} 47. Rc5 {[%emt 0:00:22]} Kb6 {[%emt 0:00:45]} 48. Rb5+ {[%emt 0:00:07]} Ka6 {[%emt 0:00:36]} 49. Kc4 {[%emt 0:00:17]} 1-0

[Event "CZE-ch Youth G16 2022"]
[Site "Luhacovice"]
[Date "2022.03.14"]
[Round "4.6"]
[White "Seda, Michaela"]
[Black "Mullerova, Karina Nela"]
[Result "1/2-1/2"]
[ECO "C42"]
[WhiteElo "1364"]
[BlackElo "1250"]
[Annotator "NA"]
[PlyCount "120"]
[EventDate "2022.03.12"]
[EventType "swiss"]
[EventCountry "CZE"]
[SourceTitle "playchess.com"]
[Source "ChessBase"]
[SourceQuality "1"]
[TimeControl "40/5400+30:1800+30"]

1. e4 e5 2. Nf3 Nf6 3. Nxe5 d6 4. Nf3 Nxe4 5. d4 Bg4 6. Bd3 d5 7. c4 Bb4+ 8. Bd2 {[%emt 0:02:28]} Bxd2+ {[%emt 0:06:07]} 9. Nbxd2 {[%emt 0:00:14]} Nxd2 {[%emt 0:00:13]} 10. Qxd2 {[%emt 0:00:10]} Bxf3 {[%emt 0:02:44]} 11. gxf3 {[%emt 0:00:06]} Qe7+ {[%emt 0:00:20]} 12. Qe3 {[%emt 0:01:00]} Nc6 {[%emt 0:01:45]} 13. O-O {[%emt 0:01:42]} O-O-O {[%emt 0:02:23]} 14. Rfe1 {[%emt 0:08:15]} Qf6 {[%emt 0:02:44]} 15. cxd5 {[%emt 0:02:05]} Rxd5 {[%emt 0:01:26]} 16. Be4 {[%emt 0:01:27]} Rg5+ {[%emt 0:04:40]} 17. Kh1 {[%emt 0:01:06]} Nxd4 {[%emt 0:01:30]} 18. Rad1 {[%emt 0:02:07]} Rd8 {[%emt 0:00:33]} 19. Rd2 {[%emt 0:18:00]} c5 {[%emt 0:13:58]} 20. Red1 {[%emt 0:02:50]} Rh5 {[%emt 0:07:28]} 21. f4 {[%emt 0:07:04]} Qh4 {[%emt 0:10:11]} 22. h3 {[%emt 0:04:19]} Qxh3+ {[%emt 0:00:44]} 23. Qxh3+ {[%emt 0:00:26]} Rxh3+ {[%emt 0:00:09]} 24. Kg2 {[%emt 0:00:07]} Rh5 {[%emt 0:00:17]} 25. b4 {[%emt 0:00:18]} b6 {[%emt 0:03:24]} 26. Bf3 {[%emt 0:03:12]} Rh4 {[%emt 0:05:22]} 27. bxc5 {[%emt 0:02:37]} bxc5 {[%emt 0:00:24]} 28. Rc1 {[%emt 0:00:54]} Kd7 {[%emt 0:03:36]} 29. Rxc5 {[%emt 0:01:05]} Ke8 {[%emt 0:00:18]} 30. Re5+ {[%emt 0:02:53]} Kf8 {[%emt 0:00:12]} 31. Re4 {[%emt 0:00:17]} Ne6 {[%emt 0:01:21]} 32. Rxd8+ {[%emt 0:00:50]} Nxd8 {[%emt 0:00:05]} 33. Kg3 {[%emt 0:00:15]} Rh6 {[%emt 0:00:11]} 34. Ra4 {[%emt 0:00:34]} Nc6 {[%emt 0:02:38]} 35. Bxc6 {[%emt 0:00:09]} Rxc6 {[%emt 0:00:03]} 36. Rxa7 {[%emt 0:00:19]} Rc2 {[%emt 0:00:22]} 37. a4 {[%emt 0:00:26]} Ra2 {[%emt 0:00:08]} 38. a5 {[%emt 0:00:06]} g6 {[%emt 0:00:09]} 39. f3 {[%emt 0:00:34]} Kg7 {[%emt 0:00:57]} 40. a6 {[%emt 0:00:17]} Kf6 {[%emt 0:02:01]} 41. Ra8 {[%emt 0:32:35]} h5 {[%emt 0:31:14]} 42. a7 {[%emt 0:00:50]} Ra4 {[%emt 0:01:06]} 43. Kf2 {[%emt 0:00:27]} Kf5 {[%emt 0:00:45]} 44. Kg3 {[%emt 0:00:36]} f6 {[%emt 0:00:37]} 45. Kg2 {[%emt 0:01:20]} Kxf4 {[%emt 0:00:15]} 46. Rf8 {[%emt 0:00:16]} Rxa7 {[%emt 0:00:09]} 47. Rxf6+ {[%emt 0:00:14]} Kg5 {[%emt 0:00:06]} 48. Rb6 {[%emt 0:00:44]} Rf7 {[%emt 0:00:22]} 49. Rb4 {[%emt 0:01:11]} Rf4 {[%emt 0:00:38]} 50. Rb5+ {[%emt 0:01:18]} Kh4 {[%emt 0:02:39]} 51. Rb1 {[%emt 0:00:16]} Kg5 {[%emt 0:01:20]} 52. Rb5+ {[%emt 0:00:23]} Rf5 {[%emt 0:00:49]} 53. Rb4 {[%emt 0:00:13]} h4 {[%emt 0:00:05]} 54. Ra4 {[%emt 0:01:33]} Kh5 {[%emt 0:00:54]} 55. Rb4 {[%emt 0:01:31]} g5 {[%emt 0:01:31]} 56. Ra4 {[%emt 0:01:19]} h3+ {[%emt 0:02:27]} 57. Kg3 {[%emt 0:02:33]} h2 {[%emt 0:00:30]} 58. Ra1 {[%emt 0:00:36]} Rf4 {[%emt 0:01:37]} 59. Rh1 {[%emt 0:00:44]} Rh4 {[%emt 0:00:06]} 60. Rxh2 {[%emt 0:00:24]} Rxh2 {[%emt 0:00:14]} 1/2-1/2

[Event "CZE-ch Youth G16 2022"]
[Site "Luhacovice"]
[Date "2022.03.15"]
[Round "5.1"]
[White "Markova, Karolina"]
[Black "Hosova, Sandra"]
[Result "1-0"]
[ECO "A36"]
[WhiteElo "1589"]
[BlackElo "1545"]
[Annotator "NA RC"]
[PlyCount "133"]
[EventDate "2022.03.12"]
[EventType "swiss"]
[EventCountry "CZE"]
[SourceTitle "playchess.com"]
[Source "ChessBase"]
[SourceQuality "1"]
[TimeControl "40/5400+30:1800+30"]

1. c4 {[%emt 0:00:08]} c5 {[%emt 0:00:33]} 2. Nc3 {[%emt 0:00:18]} Nc6 {[%emt 0:00:44]} 3. g3 {[%emt 0:00:24]} g6 {[%emt 0:01:12]} 4. Bg2 {[%emt 0:00:12]} Bg7 {[%emt 0:00:11]} 5. e3 {[%emt 0:00:12]} e6 {[%emt 0:00:38]} 6. Nge2 {[%emt 0:00:42]} Nge7 {[%emt 0:00:34]} 7. O-O {[%emt 0:00:33]} O-O {[%emt 0:00:42]} 8. d4 {[%emt 0:04:48]} cxd4 {[%emt 0:10:26]} 9. exd4 {[%emt 0:00:24]} d6 {[%emt 0:06:16]} 10. Be3 {[%emt 0:04:23]} Nf5 {[%emt 0:06:11]} 11. Qd2 {[%emt 0:01:53]} Nxe3 {[%emt 0:01:38]} 12. fxe3 {[%emt 0:00:35]} Ne7 {[%emt 0:09:35]} 13. e4 {[%emt 0:09:04]} Qc7 {[%emt 0:07:05]} 14. b3 {[%emt 0:03:23]} Bd7 {[%emt 0:02:17]} 15. Rad1 {[%emt 0:08:39]} Rad8 {[%emt 0:02:04]} 16. Nf4 {[%emt 0:07:19]} Qb6 {[%emt 0:05:14]} 17. Kh1 {[%emt 0:02:07]} f5 {[%emt 0:15:05]} 18. d5 {[%emt 0:13:31]} e5 {[%emt 0:06:46]} 19. Nfe2 {[%emt 0:06:06]} Rf7 {[%emt 0:02:34]} 20. Bh3 {[%emt 0:05:00]} Rdf8 {[%emt 0:02:35]} 21. Nc1 {[%emt 0:05:42]} Qc7 {[%emt 0:01:20]} 22. Nd3 {[%emt 0:02:23]} a6 {[%emt 0:02:38]} 23. Rc1 {[%emt 0:03:28]} Bc8 {[%emt 0:02:07]} 24. Rf2 {[%emt 0:02:21]} Qd8 {[%emt 0:02:34]} 25. Rcf1 {[%emt 0:01:35]} Rf6 {[%emt 0:00:38]} 26. Ne1 {[%emt 0:05:21]} R8f7 {[%emt 0:02:03]} 27. Ng2 {[%emt 0:01:30]} Qf8 {[%emt 0:00:47]} 28. Nh4 {[%emt 0:00:55]} Bh6 {[%emt 0:01:52]} 29. Qc2 {[%emt 0:02:05]} Be3 {[%emt 0:02:44]} 30. Rf3 {[%emt 0:03:02]} fxe4 {[%emt 0:01:57]} 31. Rxf6 {[%emt 0:01:30]} Rxf6 {[%emt 0:00:05]} 32. Rxf6 {[%emt 0:00:38]} Qxf6 {[%emt 0:00:03]} 33. Nxe4 {[%emt 0:00:25]} Qf8 {[%emt 0:01:04]} 34. Qg2 {[%emt 0:02:44]} Nf5 {[%emt 0:01:37]} 35. Nf3 {[%emt 0:01:02]} Bd7 {[%emt 0:00:36]} 36. Neg5 {[%emt 0:03:21]} Bxg5 37. Nxg5 {[%emt 0:00:05]} Ne3 {[%emt 0:03:03]} 38. Qe2 {[%emt 0:00:49]} Bxh3 {[%emt 0:00:43]} 39. Nxh3 {[%emt 0:00:03]} Nf5 {[%emt 0:01:05]} 40. Kg2 {[%emt 0:00:26]} Kg7 {[%emt 0:00:28]} 41. Qf2 {[%emt 0:01:54]} Qd8 {[%emt 0:02:52]} 42. Qa7 {[%emt 0:01:31]} Qc7 {[%emt 0:06:56]} 43. Ng5 {[%emt 0:00:34]} Kh6 {[%emt 0:02:27]} 44. Ne6 {[%emt 0:00:35]} Qa5 {[%emt 0:04:27]} 45. Qf2 {[%emt 0:04:44]} Qc3 {[%emt 0:05:32]} 46. Kh3 {[%emt 0:03:38]} Qe3 {[%emt 0:05:12]} 47. Qxe3+ {[%emt 0:01:45]} Nxe3 {[%emt 0:00:01]} 48. Nd8 {[%emt 0:03:52]} Kh5 {[%emt 0:05:01]} 49. Nxb7 {[%emt 0:00:53]} g5 {[%emt 0:00:32]} 50. g4+ {[%emt 0:00:07]} Nxg4 {[%emt 0:00:04]} 51. Nxd6 {[%emt 0:00:17]} Nf6 {[%emt 0:00:48]} 52. Nf5 {[%emt 0:04:54]} Kg6 {[%emt 0:01:24]} 53. Ne3 {[%emt 0:00:44]} Kf7 {[%emt 0:00:37]} 54. Ng4 {[%emt 0:02:26]} e4 {[%emt 0:01:06]} 55. Nxf6 {[%emt 0:01:39]} Kxf6 {[%emt 0:00:01]} 56. Kg3 {[%emt 0:00:18]} Ke5 {[%emt 0:00:34]} 57. Kf2 {[%emt 0:00:24]} g4 {[%emt 0:00:44]} 58. Ke3 {[%emt 0:00:19]} h5 {[%emt 0:00:40]} 59. d6 {[%emt 0:00:16]} Kxd6 {[%emt 0:00:27]} 60. Kxe4 {[%emt 0:00:02]} h4 {[%emt 0:00:35]} 61. Kf4 {[%emt 0:05:47]} g3 {[%emt 0:00:28]} 62. Kf3 {[%emt 0:00:21]} Ke5 {[%emt 0:00:45]} 63. hxg3 {[%emt 0:01:04]} hxg3 {[%emt 0:00:19]} 64. Kxg3 {[%emt 0:00:04]} a5 {[%emt 0:00:12]} 65. Kf3 {[%emt 0:00:18]} Kd4 {[%emt 0:00:19]} 66. Ke2 {[%emt 0:00:46]} a4 {[%emt 0:00:51]} 67. Kd2 {[%emt 0:00:12]} 1-0

[Event "CZE-ch Youth G16 2022"]
[Site "Luhacovice"]
[Date "2022.03.15"]
[Round "5.2"]
[White "Voriskova, Anna"]
[Black "Nagyova, Daniela"]
[Result "1-0"]
[ECO "E18"]
[WhiteElo "1812"]
[BlackElo "1623"]
[Annotator "NA"]
[PlyCount "85"]
[EventDate "2022.03.12"]
[EventType "swiss"]
[EventCountry "CZE"]
[SourceTitle "playchess.com"]
[Source "ChessBase"]
[SourceQuality "1"]
[TimeControl "40/5400+30:1800+30"]

1. d4 {[%emt 0:00:03]} Nf6 {[%emt 0:00:14]} 2. c4 {[%emt 0:00:14]} e6 {[%emt 0:00:21]} 3. Nf3 {[%emt 0:00:17]} b6 {[%emt 0:02:29]} 4. g3 {[%emt 0:00:50]} Bb7 {[%emt 0:00:13]} 5. Bg2 {[%emt 0:00:22]} Be7 {[%emt 0:01:21]} 6. O-O {[%emt 0:01:48]} O-O {[%emt 0:00:15]} 7. Nc3 {[%emt 0:01:05]} d5 {[%emt 0:01:16]} 8. Ne5 {[%emt 0:10:54]} Na6 {[%emt 0:02:18]} 9. b3 {[%emt 0:02:27]} c5 {[%emt 0:06:29]} 10. Bb2 {[%emt 0:09:30]} Qb8 {[%emt 0:11:35]} 11. cxd5 {[%emt 0:10:26]} exd5 {[%emt 0:05:03]} 12. e3 {[%emt 0:03:12]} Nc7 {[%emt 0:07:13]} 13. Rc1 {[%emt 0:01:19]} Rd8 {[%emt 0:04:39]} 14. Qc2 {[%emt 0:01:17]} Ne6 {[%emt 0:03:43]} 15. Nf3 {[%emt 0:02:33]} Qd6 $11 {[%emt 0:06:54]} 16. Rfd1 {[%emt 0:02:29]} Rac8 {[%emt 0:03:20]} 17. Qb1 {[%emt 0:00:31]} Bf8 {[%emt 0:03:47]} 18. dxc5 {[%emt 0:08:26]} bxc5 {[%emt 0:03:19]} 19. e4 {[%emt 0:07:54]} Qe7 {[%emt 0:05:46]} 20. exd5 {[%emt 0:01:31]} Nxd5 {[%emt 0:01:16]} 21. Ne4 {[%emt 0:05:57]} Nb4 {[%emt 0:06:50]} 22. Neg5 {[%emt 0:12:30]} g6 {[%emt 0:08:49]} 23. Nxe6 {[%emt 0:00:26]} Qxe6 {[%emt 0:00:56]} 24. Ng5 {[%emt 0:02:27]} Qa6 {[%emt 0:01:41]} 25. Bxb7 {[%emt 0:00:35]} Qxb7 {[%emt 0:00:02]} 26. Ne4 {[%emt 0:01:01]} Rxd1+ {[%emt 0:02:14]} 27. Rxd1 {[%emt 0:00:02]} Be7 {[%emt 0:02:51]} 28. Bf6 {[%emt 0:05:39]} Qc7 {[%emt 0:06:33]} 29. Qb2 {[%emt 0:00:43]} Nc6 {[%emt 0:02:04]} 30. Bxe7 {[%emt 0:02:19]} Qxe7 {[%emt 0:00:07]} 31. Nf6+ {[%emt 0:00:58]} Kg7 {[%emt 0:00:44]} 32. Ne8+ {[%emt 0:01:42]} Kh6 {[%emt 0:00:02]} 33. Qg7+ {[%emt 0:00:38]} Kg5 {[%emt 0:00:11]} 34. h4+ {[%emt 0:00:38]} Kg4 {[%emt 0:00:39]} 35. Nf6+ {[%emt 0:01:43]} Kh3 {[%emt 0:00:07]} 36. Nd5 {[%emt 0:00:42]} Qe4 {[%emt 0:01:07]} 37. Nf4+ {[%emt 0:00:10]} Kg4 {[%emt 0:00:06]} 38. Qxf7 {[%emt 0:01:24]} Qf5 {[%emt 0:01:28]} 39. Qxf5+ {[%emt 0:01:48]} gxf5 {[%emt 0:00:14]} 40. Rd7 {[%emt 0:00:59]} Rd8 {[%emt 0:01:33]} 41. Rxd8 {[%emt 0:30:57]} Nxd8 {[%emt 0:30:01]} 42. Kg2 {[%emt 0:00:00]} Nc6 {[%emt 0:00:00]} 43. f3# 1-0

[Event "CZE-ch Youth G16 2022"]
[Site "Luhacovice"]
[Date "2022.03.15"]
[Round "5.3"]
[White "Smajzrova, Dominika"]
[Black "Fizerova, Lucie"]
[Result "0-1"]
[ECO "B23"]
[WhiteElo "1203"]
[BlackElo "1804"]
[Annotator "NA"]
[PlyCount "49"]
[EventDate "2022.03.12"]
[EventType "swiss"]
[EventCountry "CZE"]
[SourceTitle "playchess.com"]
[Source "ChessBase"]
[SourceQuality "1"]
[TimeControl "40/5400+30:1800+30"]

1. e4 {[%emt 0:00:02]} c5 {[%emt 0:00:13]} 2. Nc3 {[%emt 0:00:12]} a6 {[%emt 0:00:28]} 3. g3 {[%emt 0:00:29]} b5 {[%emt 0:00:24]} 4. a3 {[%emt 0:04:59]} Bb7 {[%emt 0:00:33]} 5. Bg2 {[%emt 0:00:15]} Nf6 {[%emt 0:01:08]} 6. d3 {[%emt 0:00:34]} e6 {[%emt 0:01:28]} 7. Bg5 {[%emt 0:13:14]} Be7 {[%emt 0:02:25]} 8. Nf3 {[%emt 0:02:59]} d5 {[%emt 0:04:58]} 9. Bxf6 {[%emt 0:06:25]} Bxf6 {[%emt 0:00:36]} 10. e5 {[%emt 0:01:17]} (10. exd5 $1 $11 exd5 11. Qe2+ Kf8 12. Qd2) 10... Be7 {[%emt 0:00:52]} 11. O-O {[%emt 0:01:03]} Nd7 $15 {[%emt 0:02:56]} 12. Re1 {[%emt 0:05:17]} Qc7 {[%emt 0:04:12]} 13. Nb1 {[%emt 0:06:07]} g5 {[%emt 0:05:05]} 14. h3 {[%emt 0:04:06]} h5 {[%emt 0:02:04]} 15. Qe2 {[%emt 0:01:04]} d4 {[%emt 0:04:46]} 16. Nbd2 {[%emt 0:03:10]} g4 {[%emt 0:03:02]} 17. hxg4 {[%emt 0:04:00]} hxg4 {[%emt 0:00:14]} 18. Nh2 {[%emt 0:00:23]} Bxg2 {[%emt 0:10:27]} 19. Kxg2 {[%emt 0:00:10]} O-O-O {[%emt 0:01:21]} 20. Nxg4 {[%emt 0:01:06]} Rdg8 {[%emt 0:02:46]} 21. Rh1 {[%emt 0:04:09]} Qb7+ {[%emt 0:02:07]} 22. Qf3 {[%emt 0:02:25]} Rxh1 {[%emt 0:01:08]} 23. Rxh1 {[%emt 0:00:43]} Rxg4 {[%emt 0:00:37]} 24. Qe4 Qc6 25. Qxc6+ {[%emt 0:07:28]} 0-1